[Event "*** Titled Tuesday Blitz"]
[Site "Chess.com"]
[Date "2020.11.24"]
[Round "4"]
[White "Agoking701"]
[Black "TST2014"]
[Result "1-0"]
[WhiteElo "2354"]
[BlackElo "2495"]
[TimeControl "180+1"]
[EndTime "10:55:48 PST"]
[Termination "Agoking701 won on time"]

1. e4 {[%clk 0:03:00.9]} 1... c5 {[%clk 0:02:58.7]} 2. Nc3 {[%clk 0:03:01.2]}
2... Nc6 {[%clk 0:02:58.2]} 3. f4 {[%clk 0:03:01]} 3... g6 {[%clk 0:02:57.2]} 4.
Nf3 {[%clk 0:02:58.8]} 4... Bg7 {[%clk 0:02:57.1]} 5. Bc4 {[%clk 0:02:57.1]}
5... e6 {[%clk 0:02:53.5]} 6. O-O {[%clk 0:02:55.6]} 6... Nge7 {[%clk
0:02:52.3]} 7. Qe1 {[%clk 0:02:55]} 7... O-O {[%clk 0:02:43.9]} 8. d3 {[%clk
0:02:52.9]} 8... d5 {[%clk 0:02:41.2]} 9. Bb3 {[%clk 0:02:53]} 9... b5 {[%clk
0:02:28.9]} 10. Nxb5 {[%clk 0:02:28.4]} 10... Qb6 {[%clk 0:02:28.1]} 11. c4
{[%clk 0:02:28.1]} 11... Na5 {[%clk 0:02:17.4]} 12. Qh4 {[%clk 0:02:17.6]} 12...
f6 {[%clk 0:02:07.5]} 13. Bd2 {[%clk 0:01:59]} 13... Nxb3 {[%clk 0:01:56.4]} 14.
axb3 {[%clk 0:01:59.9]} 14... a6 {[%clk 0:01:56.6]} 15. Rfe1 {[%clk 0:01:33.5]}
15... d4 {[%clk 0:01:39.1]} 16. Ba5 {[%clk 0:01:13.7]} 16... Qb8 {[%clk
0:01:22.4]} 17. Na3 {[%clk 0:00:52.2]} 17... Qxb3 {[%clk 0:01:20]} 18. Qf2
{[%clk 0:00:47.2]} 18... Qxd3 {[%clk 0:01:11.1]} 19. b4 {[%clk 0:00:47.3]} 19...
Nc6 {[%clk 0:01:06.8]} 20. Nc2 {[%clk 0:00:40.6]} 20... Qxc4 {[%clk 0:00:55]}
21. Rec1 {[%clk 0:00:34.7]} 21... Qd3 {[%clk 0:00:43]} 22. Bb6 {[%clk
0:00:27.6]} 22... Qxe4 {[%clk 0:00:39.2]} 23. Bxc5 {[%clk 0:00:27.2]} 23... d3
{[%clk 0:00:35.3]} 24. Bxf8 {[%clk 0:00:23.6]} 24... Bxf8 {[%clk 0:00:31.8]} 25.
Ncd4 {[%clk 0:00:23.9]} 25... Nxd4 {[%clk 0:00:30.1]} 26. Qxd4 {[%clk
0:00:24.8]} 26... Qxd4+ {[%clk 0:00:30]} 27. Nxd4 {[%clk 0:00:25.7]} 27... Bxb4
{[%clk 0:00:30.2]} 28. Nc6 {[%clk 0:00:25]} 28... d2 {[%clk 0:00:18.6]} 29. Rd1
{[%clk 0:00:19.8]} 29... Bc5+ {[%clk 0:00:15]} 30. Kf1 {[%clk 0:00:18]} 30...
Bb7 {[%clk 0:00:15.2]} 31. Na5 {[%clk 0:00:17.7]} 31... Bd5 {[%clk 0:00:13.8]}
32. Rxd2 {[%clk 0:00:17]} 32... Rb8 {[%clk 0:00:13.7]} 33. Rc2 {[%clk
0:00:11.6]} 33... Rb5 {[%clk 0:00:13.2]} 34. Nc4 {[%clk 0:00:11.5]} 34... Bd4
{[%clk 0:00:11.4]} 35. Rd1 {[%clk 0:00:10.6]} 35... Be4 {[%clk 0:00:09.2]} 36.
Re2 {[%clk 0:00:09.2]} 36... Bd5 {[%clk 0:00:05.8]} 37. Rxd4 {[%clk 0:00:08]}
37... Rb1+ {[%clk 0:00:06.2]} 38. Kf2 {[%clk 0:00:07.9]} 38... Rb4 {[%clk
0:00:06.1]} 39. Rc2 {[%clk 0:00:08]} 39... h6 {[%clk 0:00:04.9]} 40. Ke3 {[%clk
0:00:08.2]} 40... a5 {[%clk 0:00:05]} 41. Nd2 {[%clk 0:00:08.4]} 41... a4 {[%clk
0:00:04.7]} 42. Rxb4 {[%clk 0:00:08.2]} 42... Bxg2 {[%clk 0:00:04.7]} 43. Rxa4
{[%clk 0:00:07.9]} 43... h5 {[%clk 0:00:05.1]} 44. Rc7 {[%clk 0:00:08.3]} 44...
h4 {[%clk 0:00:03.6]} 45. Rb4 {[%clk 0:00:08.5]} 1-0

[Event "*** Titled Tuesday Blitz"]
[Site "Chess.com"]
[Date "2020.11.24"]
[Round "4"]
[White "Tayson_7"]
[Black "Susal_De_Silva"]
[Result "1-0"]
[WhiteElo "2693"]
[BlackElo "2531"]
[TimeControl "180+1"]
[EndTime "10:55:49 PST"]
[Termination "Tayson_7 won by resignation"]

1. e4 {[%clk 0:03:00.7]} 1... e5 {[%clk 0:03:00.1]} 2. Nf3 {[%clk 0:03:00.6]}
2... Nc6 {[%clk 0:03:00.8]} 3. Bb5 {[%clk 0:03:01.2]} 3... a6 {[%clk 0:03:01]}
4. Ba4 {[%clk 0:03:01.7]} 4... Nf6 {[%clk 0:03:00.4]} 5. O-O {[%clk 0:03:01.3]}
5... Be7 {[%clk 0:02:59.3]} 6. d3 {[%clk 0:03:01.9]} 6... b5 {[%clk 0:02:59.5]}
7. Bb3 {[%clk 0:03:02.4]} 7... d6 {[%clk 0:03:00.4]} 8. a3 {[%clk 0:03:03]} 8...
O-O {[%clk 0:03:00.3]} 9. Nc3 {[%clk 0:03:03.4]} 9... Be6 {[%clk 0:02:59.6]} 10.
Nd5 {[%clk 0:03:02.5]} 10... Bxd5 {[%clk 0:02:57.1]} 11. Bxd5 {[%clk 0:02:52.2]}
11... Nxd5 {[%clk 0:02:57.1]} 12. exd5 {[%clk 0:02:53.1]} 12... Nb8 {[%clk
0:02:58]} 13. Re1 {[%clk 0:02:42.2]} 13... f5 {[%clk 0:02:56.6]} 14. b4 {[%clk
0:02:13.1]} 14... Nd7 {[%clk 0:02:53.9]} 15. Bb2 {[%clk 0:02:11.4]} 15... Qe8
{[%clk 0:02:48.4]} 16. c4 {[%clk 0:02:09.1]} 16... bxc4 {[%clk 0:02:31.8]} 17.
dxc4 {[%clk 0:02:10]} 17... Qg6 {[%clk 0:02:32.1]} 18. Nd4 {[%clk 0:02:03.3]}
18... f4 {[%clk 0:02:11.2]} 19. Qb1 {[%clk 0:01:40.7]} 19... Qh5 {[%clk
0:01:36.7]} 20. Qd1 {[%clk 0:01:24.1]} 20... Qh4 {[%clk 0:01:25.5]} 21. Ne6
{[%clk 0:01:13.2]} 21... Rf6 {[%clk 0:01:15.1]} 22. Qf3 {[%clk 0:01:11]} 22...
Rc8 {[%clk 0:01:12.1]} 23. h3 {[%clk 0:01:04.7]} 23... g5 {[%clk 0:01:10.2]} 24.
Qg4 {[%clk 0:01:02.5]} 24... Qxg4 {[%clk 0:01:06.6]} 25. hxg4 {[%clk 0:01:03.4]}
25... Rh6 {[%clk 0:01:02.4]} 26. Rac1 {[%clk 0:01:02.5]} 26... Nf8 {[%clk
0:01:02.3]} 27. Nxf8 {[%clk 0:00:59.3]} 27... Kxf8 {[%clk 0:01:02.3]} 28. c5
{[%clk 0:00:59.5]} 28... Re8 {[%clk 0:00:50]} 29. f3 {[%clk 0:00:54.9]} 29...
Rh4 {[%clk 0:00:40.2]} 30. Kf2 {[%clk 0:00:50.7]} 30... h5 {[%clk 0:00:39.4]}
31. gxh5 {[%clk 0:00:49.2]} 31... Rxh5 {[%clk 0:00:39.4]} 32. cxd6 {[%clk
0:00:42.4]} 32... Bxd6 {[%clk 0:00:38.9]} 33. Rh1 {[%clk 0:00:39.4]} 33... Rxh1
{[%clk 0:00:37.4]} 34. Rxh1 {[%clk 0:00:40.3]} 34... e4 {[%clk 0:00:36.4]} 35.
Rh8+ {[%clk 0:00:39.8]} 35... Kf7 {[%clk 0:00:35.5]} 36. Rxe8 {[%clk 0:00:40.7]}
36... Kxe8 {[%clk 0:00:36.4]} 37. fxe4 {[%clk 0:00:41]} 37... g4 {[%clk
0:00:23.9]} 38. e5 {[%clk 0:00:41]} 38... Bf8 {[%clk 0:00:21.3]} 39. Bc1 {[%clk
0:00:34.5]} 39... f3 {[%clk 0:00:20.6]} 40. gxf3 {[%clk 0:00:34]} 40... gxf3
{[%clk 0:00:21.5]} 41. Kxf3 {[%clk 0:00:34.9]} 41... c6 {[%clk 0:00:17.4]} 42.
Ke4 {[%clk 0:00:32.3]} 42... cxd5+ {[%clk 0:00:11.2]} 43. Kxd5 {[%clk
0:00:33.2]} 43... Kd7 {[%clk 0:00:11.7]} 44. e6+ {[%clk 0:00:32.4]} 44... Ke8
{[%clk 0:00:11.6]} 45. Bf4 {[%clk 0:00:32.1]} 45... Bg7 {[%clk 0:00:10.9]} 46.
Bd6 {[%clk 0:00:32]} 46... Bb2 {[%clk 0:00:10.5]} 47. a4 {[%clk 0:00:32.3]}
47... Bc3 {[%clk 0:00:08.6]} 48. b5 {[%clk 0:00:32.5]} 48... axb5 {[%clk
0:00:09.5]} 49. axb5 {[%clk 0:00:33.4]} 49... Ba5 {[%clk 0:00:10]} 50. Kc6
{[%clk 0:00:34.1]} 50... Kd8 {[%clk 0:00:06.3]} 51. b6 {[%clk 0:00:35]} 51...
Kc8 {[%clk 0:00:03.8]} 52. b7+ {[%clk 0:00:34.5]} 1-0

[Event "*** Titled Tuesday Blitz"]
[Site "Chess.com"]
[Date "2020.11.24"]
[Round "4"]
[White "1nikolachess"]
[Black "Brave_spirit12"]
[Result "0-1"]
[WhiteElo "2305"]
[BlackElo "2493"]
[TimeControl "180+1"]
[EndTime "10:55:49 PST"]
[Termination "Brave_spirit12 won by checkmate"]

1. e4 {[%clk 0:03:00.9]} 1... e6 {[%clk 0:02:59]} 2. d4 {[%clk 0:03:00.7]} 2...
d5 {[%clk 0:02:59.3]} 3. e5 {[%clk 0:03:00.8]} 3... c5 {[%clk 0:02:40.5]} 4. c3
{[%clk 0:02:59.4]} 4... Nc6 {[%clk 0:02:40.3]} 5. Nf3 {[%clk 0:02:43.4]} 5...
Qb6 {[%clk 0:02:39.3]} 6. Be2 {[%clk 0:02:43.2]} 6... f6 {[%clk 0:02:38.5]} 7.
O-O {[%clk 0:02:42.2]} 7... g6 {[%clk 0:02:31.2]} 8. Re1 {[%clk 0:02:34.3]} 8...
fxe5 {[%clk 0:02:30.2]} 9. dxe5 {[%clk 0:02:33.8]} 9... Bg7 {[%clk 0:02:30.7]}
10. Bf1 {[%clk 0:02:33.5]} 10... Nh6 {[%clk 0:02:29]} 11. Bxh6 {[%clk
0:02:23.5]} 11... Bxh6 {[%clk 0:02:29.9]} 12. Qc2 {[%clk 0:02:17.3]} 12... O-O
{[%clk 0:02:23.8]} 13. Nbd2 {[%clk 0:02:09.1]} 13... c4 {[%clk 0:02:22.6]} 14.
Rad1 {[%clk 0:01:57.4]} 14... Bg7 {[%clk 0:02:16.4]} 15. Re2 {[%clk 0:01:46.5]}
15... a5 {[%clk 0:02:03.4]} 16. Rde1 {[%clk 0:01:41]} 16... a4 {[%clk 0:02:01]}
17. g3 {[%clk 0:01:40.2]} 17... a3 {[%clk 0:01:57.1]} 18. b3 {[%clk 0:01:39.6]}
18... cxb3 {[%clk 0:01:55.2]} 19. Nxb3 {[%clk 0:01:38.7]} 19... Bd7 {[%clk
0:01:53.5]} 20. Bg2 {[%clk 0:01:37.2]} 20... Rfc8 {[%clk 0:01:44.5]} 21. Rb1
{[%clk 0:01:26.9]} 21... Qc7 {[%clk 0:01:31.6]} 22. Rbe1 {[%clk 0:01:25.6]}
22... Ra4 {[%clk 0:01:23.3]} 23. Nc5 {[%clk 0:01:14.2]} 23... Rc4 {[%clk
0:01:17.7]} 24. Nxd7 {[%clk 0:01:10.8]} 24... Qxd7 {[%clk 0:01:18.6]} 25. Qb3
{[%clk 0:01:08.9]} 25... Qe7 {[%clk 0:01:04.3]} 26. Bh3 {[%clk 0:00:57.7]} 26...
Nd8 {[%clk 0:00:52.2]} 27. Nd4 {[%clk 0:00:48.3]} 27... Rxc3 {[%clk 0:00:49.7]}
28. Qb6 {[%clk 0:00:48]} 28... Kf7 {[%clk 0:00:33.1]} 29. Nb5 {[%clk 0:00:47.2]}
29... R8c6 {[%clk 0:00:28.6]} 30. Qa5 {[%clk 0:00:42.7]} 30... Rc1 {[%clk
0:00:27.3]} 31. Nd6+ {[%clk 0:00:40.1]} 31... Kg8 {[%clk 0:00:26.8]} 32. Qxa3
{[%clk 0:00:38.4]} 32... Rxe1+ {[%clk 0:00:25.3]} 33. Rxe1 {[%clk 0:00:39.3]}
33... Bxe5 {[%clk 0:00:22.1]} 34. Rxe5 {[%clk 0:00:27.5]} 34... Qxd6 {[%clk
0:00:21.8]} 35. Qe3 {[%clk 0:00:24.2]} 35... d4 {[%clk 0:00:20.6]} 36. Qe2
{[%clk 0:00:20.1]} 36... d3 {[%clk 0:00:20.3]} 37. Qe3 {[%clk 0:00:11.3]} 37...
d2 {[%clk 0:00:19.7]} 38. Bg4 {[%clk 0:00:10.7]} 38... d1=Q+ {[%clk 0:00:16.1]}
39. Bxd1 {[%clk 0:00:10.6]} 39... Qxd1+ {[%clk 0:00:15.8]} 40. Kg2 {[%clk
0:00:11.5]} 40... Qd7 {[%clk 0:00:16.4]} 41. a4 {[%clk 0:00:11.1]} 41... Nf7
{[%clk 0:00:16.5]} 42. Rb5 {[%clk 0:00:10.7]} 42... Rd6 {[%clk 0:00:14.3]} 43.
Qb3 {[%clk 0:00:10.8]} 43... Qc6+ {[%clk 0:00:14.2]} 44. Kh3 {[%clk 0:00:09.6]}
44... Rd5 {[%clk 0:00:09]} 45. Rxb7 {[%clk 0:00:07.5]} 45... Rh5+ {[%clk
0:00:08.7]} 46. Kg4 {[%clk 0:00:06.6]} 46... Qe4+ {[%clk 0:00:09.1]} 47. f4
{[%clk 0:00:06.2]} 47... Ne5# {[%clk 0:00:08.9]} 0-1

[Event "*** Titled Tuesday Blitz"]
[Site "Chess.com"]
[Date "2020.11.24"]
[Round "4"]
[White "Son_of_Sultan"]
[Black "azikom"]
[Result "0-1"]
[WhiteElo "2684"]
[BlackElo "2597"]
[TimeControl "180+1"]
[EndTime "10:55:51 PST"]
[Termination "azikom won on time"]

1. d4 {[%clk 0:03:00.9]} 1... d5 {[%clk 0:02:59.4]} 2. Nf3 {[%clk 0:03:00]} 2...
c6 {[%clk 0:02:59.3]} 3. g3 {[%clk 0:02:56.6]} 3... Nf6 {[%clk 0:02:58.8]} 4.
Bg2 {[%clk 0:02:54.9]} 4... Bf5 {[%clk 0:02:59.1]} 5. c4 {[%clk 0:02:47.9]} 5...
e6 {[%clk 0:02:59.2]} 6. Nc3 {[%clk 0:02:46.8]} 6... Nbd7 {[%clk 0:02:58.7]} 7.
Qb3 {[%clk 0:02:45.9]} 7... Qb6 {[%clk 0:02:58.1]} 8. c5 {[%clk 0:02:44.6]} 8...
Qc7 {[%clk 0:02:51.3]} 9. Bf4 {[%clk 0:02:37.5]} 9... Qc8 {[%clk 0:02:51.2]} 10.
Nd2 {[%clk 0:02:29.7]} 10... Be7 {[%clk 0:02:37.9]} 11. e4 {[%clk 0:02:21.1]}
11... dxe4 {[%clk 0:02:35.8]} 12. Ncxe4 {[%clk 0:02:15.5]} 12... Nxe4 {[%clk
0:02:34.5]} 13. Bxe4 {[%clk 0:02:12.3]} 13... Bh3 {[%clk 0:02:28.7]} 14. g4
{[%clk 0:01:48.1]} 14... Bxg4 {[%clk 0:02:27.1]} 15. Rg1 {[%clk 0:01:47.8]}
15... Bh5 {[%clk 0:02:23.7]} 16. Rxg7 {[%clk 0:01:46.1]} 16... Bg6 {[%clk
0:01:53.3]} 17. Qh3 {[%clk 0:01:27.2]} 17... Nf8 {[%clk 0:00:18.7]} 18. Bxg6
{[%clk 0:01:11.6]} 18... Nxg6 {[%clk 0:00:17.7]} 19. Bd6 {[%clk 0:00:59.4]}
19... Bxd6 {[%clk 0:00:17.1]} 20. cxd6 {[%clk 0:00:58.9]} 20... Qd7 {[%clk
0:00:17.3]} 21. Ne4 {[%clk 0:00:55.8]} 21... O-O-O {[%clk 0:00:16.1]} 22. O-O-O
{[%clk 0:00:50.6]} 22... Kb8 {[%clk 0:00:09.4]} 23. Rxh7 {[%clk 0:00:39.2]}
23... Rxh7 {[%clk 0:00:09.1]} 24. Qxh7 {[%clk 0:00:39.1]} 24... Nf4 {[%clk
0:00:07.5]} 25. Qh4 {[%clk 0:00:28.9]} 25... Nd5 {[%clk 0:00:06.7]} 26. Qg3
{[%clk 0:00:23.5]} 26... f5 {[%clk 0:00:05.9]} 27. Nc5 {[%clk 0:00:22.9]} 27...
Qxd6 {[%clk 0:00:06.2]} 28. Nxe6 {[%clk 0:00:22.7]} 28... Qxg3 {[%clk
0:00:06.4]} 29. fxg3 {[%clk 0:00:22.4]} 29... Re8 {[%clk 0:00:05.8]} 30. Nc5
{[%clk 0:00:19.8]} 30... Re2 {[%clk 0:00:05]} 31. Rd2 {[%clk 0:00:19.9]} 31...
Re1+ {[%clk 0:00:05.2]} 32. Kc2 {[%clk 0:00:19.7]} 32... b6 {[%clk 0:00:05.7]}
33. Nd7+ {[%clk 0:00:17.5]} 33... Kc7 {[%clk 0:00:05.6]} 34. Ne5 {[%clk
0:00:17.3]} 34... Kd6 {[%clk 0:00:05.7]} 35. Nd3 {[%clk 0:00:16.5]} 35... Rh1
{[%clk 0:00:05.5]} 36. a3 {[%clk 0:00:15.9]} 36... Ne3+ {[%clk 0:00:05.3]} 37.
Kb3 {[%clk 0:00:15.7]} 37... Ng4 {[%clk 0:00:04.9]} 38. h4 {[%clk 0:00:10.9]}
38... Ne3 {[%clk 0:00:04.5]} 39. Re2 {[%clk 0:00:07.6]} 39... Nd5 {[%clk
0:00:03.8]} 40. Rf2 {[%clk 0:00:04.6]} 40... Rh3 {[%clk 0:00:03]} 0-1

[Event "*** Titled Tuesday Blitz"]
[Site "Chess.com"]
[Date "2020.11.24"]
[Round "4"]
[White "Sinquefield"]
[Black "FMJoseHerrera"]
[Result "1-0"]
[WhiteElo "2413"]
[BlackElo "2575"]
[TimeControl "180+1"]
[EndTime "10:55:51 PST"]
[Termination "Sinquefield won by checkmate"]

1. e4 {[%clk 0:03:00.9]} 1... c5 {[%clk 0:02:13.3]} 2. Nf3 {[%clk 0:02:55.1]}
2... e6 {[%clk 0:02:13]} 3. d4 {[%clk 0:02:55.1]} 3... cxd4 {[%clk 0:02:13]} 4.
Nxd4 {[%clk 0:02:56]} 4... a6 {[%clk 0:02:12.4]} 5. Nc3 {[%clk 0:02:56.1]} 5...
Qc7 {[%clk 0:02:11.5]} 6. g3 {[%clk 0:02:55.3]} 6... b6 {[%clk 0:02:10.9]} 7.
Bg2 {[%clk 0:02:55.5]} 7... Bb7 {[%clk 0:02:09.9]} 8. O-O {[%clk 0:02:54.9]}
8... d6 {[%clk 0:02:09.4]} 9. Re1 {[%clk 0:02:55.3]} 9... Nd7 {[%clk 0:02:09.1]}
10. Nd5 {[%clk 0:02:22.4]} 10... exd5 {[%clk 0:02:08.4]} 11. exd5+ {[%clk
0:02:22.5]} 11... Ne5 {[%clk 0:02:08.7]} 12. f4 {[%clk 0:02:21.1]} 12... O-O-O
{[%clk 0:01:53.9]} 13. fxe5 {[%clk 0:02:15.8]} 13... dxe5 {[%clk 0:01:54.8]} 14.
Nb3 {[%clk 0:01:53.7]} 14... Nf6 {[%clk 0:01:51.5]} 15. Bg5 {[%clk 0:01:47.9]}
15... h5 {[%clk 0:01:35.6]} 16. c4 {[%clk 0:01:44.3]} 16... Ng4 {[%clk
0:01:17.6]} 17. Rf1 {[%clk 0:00:29.8]} 17... Bc5+ {[%clk 0:01:14.7]} 18. Kh1
{[%clk 0:00:29.7]} 18... f6 {[%clk 0:01:14.6]} 19. Bd2 {[%clk 0:00:29.2]} 19...
Kb8 {[%clk 0:00:57.7]} 20. Nxc5 {[%clk 0:00:26.8]} 20... Qxc5 {[%clk 0:00:58.6]}
21. Qe2 {[%clk 0:00:20.7]} 21... b5 {[%clk 0:00:52.9]} 22. Rac1 {[%clk
0:00:19.8]} 22... b4 {[%clk 0:00:35.1]} 23. a3 {[%clk 0:00:19.5]} 23... Qd4
{[%clk 0:00:23.6]} 24. axb4 {[%clk 0:00:16]} 24... h4 {[%clk 0:00:23.8]} 25. Bc3
{[%clk 0:00:15.4]} 25... Qe3 {[%clk 0:00:20.8]} 26. Qxg4 {[%clk 0:00:14.2]}
26... hxg3 {[%clk 0:00:21.3]} 27. h3 {[%clk 0:00:09.8]} 27... Bc8 {[%clk
0:00:21.6]} 28. Qf3 {[%clk 0:00:09.5]} 28... Qg5 {[%clk 0:00:21.9]} 29. d6
{[%clk 0:00:08.7]} 29... Rxd6 {[%clk 0:00:11.6]} 30. Kg1 {[%clk 0:00:06.3]}
30... Kc7 {[%clk 0:00:09.3]} 31. c5 {[%clk 0:00:06.2]} 31... Re6 {[%clk
0:00:05.5]} 32. b5 {[%clk 0:00:06.7]} 32... e4 {[%clk 0:00:05.4]} 33. Ba5+
{[%clk 0:00:05.9]} 33... Kb8 {[%clk 0:00:05.4]} 34. Qf4+ {[%clk 0:00:06.2]}
34... Qxf4 {[%clk 0:00:06]} 35. Rxf4 {[%clk 0:00:06.9]} 35... axb5 {[%clk
0:00:06.9]} 36. Rxe4 {[%clk 0:00:07.1]} 36... Rxe4 {[%clk 0:00:07.3]} 37. Bxe4
{[%clk 0:00:07.5]} 37... Rxh3 {[%clk 0:00:07.3]} 38. c6 {[%clk 0:00:07.7]} 38...
f5 {[%clk 0:00:06.5]} 39. c7+ {[%clk 0:00:07.8]} 39... Ka7 {[%clk 0:00:07]} 40.
Bg2 {[%clk 0:00:08]} 40... Rh6 {[%clk 0:00:06.2]} 41. Bb4 {[%clk 0:00:07.8]}
41... Kb6 {[%clk 0:00:05.7]} 42. Bf8 {[%clk 0:00:07.1]} 42... Rg6 {[%clk
0:00:04.8]} 43. Be7 {[%clk 0:00:07.1]} 43... f4 {[%clk 0:00:05.1]} 44. Bb4
{[%clk 0:00:05.7]} 44... Rf6 {[%clk 0:00:04.6]} 45. Bc3 {[%clk 0:00:06]} 45...
Rf7 {[%clk 0:00:04.4]} 46. Bd4+ {[%clk 0:00:06.3]} 46... Ka5 {[%clk 0:00:04.6]}
47. Bc5 {[%clk 0:00:05.5]} 47... f3 {[%clk 0:00:04.7]} 48. Ra1# {[%clk
0:00:04.6]} 1-0

[Event "*** Titled Tuesday Blitz"]
[Site "Chess.com"]
[Date "2020.11.24"]
[Round "4"]
[White "JulAnt"]
[Black "kinga2008"]
[Result "1-0"]
[WhiteElo "2438"]
[BlackElo "2180"]
[TimeControl "180+1"]
[EndTime "10:55:51 PST"]
[Termination "JulAnt won by resignation"]

1. e4 {[%clk 0:03:00.9]} 1... c5 {[%clk 0:02:59]} 2. Nf3 {[%clk 0:03:00.6]} 2...
Nc6 {[%clk 0:02:57.9]} 3. d4 {[%clk 0:03:00.7]} 3... cxd4 {[%clk 0:02:56.8]} 4.
Nxd4 {[%clk 0:03:01]} 4... e5 {[%clk 0:02:55.2]} 5. Nb5 {[%clk 0:03:00.9]} 5...
a6 {[%clk 0:02:53.4]} 6. Nd6+ {[%clk 0:02:59.8]} 6... Bxd6 {[%clk 0:02:50.9]} 7.
Qxd6 {[%clk 0:03:00.7]} 7... Qf6 {[%clk 0:02:51.7]} 8. Qd1 {[%clk 0:02:57.8]}
8... Qg6 {[%clk 0:02:51.7]} 9. f3 {[%clk 0:02:49.7]} 9... Nge7 {[%clk 0:02:48]}
10. Be3 {[%clk 0:02:48.5]} 10... O-O {[%clk 0:02:46.7]} 11. Nc3 {[%clk
0:02:48.2]} 11... d5 {[%clk 0:02:35.3]} 12. exd5 {[%clk 0:02:45.6]} 12... Nb4
{[%clk 0:02:34.7]} 13. Bd3 {[%clk 0:02:31.3]} 13... Nxd3+ {[%clk 0:02:27.5]} 14.
Qxd3 {[%clk 0:02:30.3]} 14... Bf5 {[%clk 0:02:22.6]} 15. Qd2 {[%clk 0:02:28.4]}
15... Bxc2 {[%clk 0:02:19.5]} 16. O-O {[%clk 0:02:25.9]} 16... Rad8 {[%clk
0:02:19.5]} 17. Rac1 {[%clk 0:02:21.8]} 17... Bd3 {[%clk 0:02:18.2]} 18. Rfd1
{[%clk 0:02:18]} 18... Bc4 {[%clk 0:02:18.2]} 19. Bc5 {[%clk 0:02:09.9]} 19...
Rfe8 {[%clk 0:02:16.5]} 20. Bxe7 {[%clk 0:02:05.1]} 20... Rxe7 {[%clk
0:02:17.4]} 21. b3 {[%clk 0:02:04.3]} 21... Bb5 {[%clk 0:02:14.2]} 22. Nxb5
{[%clk 0:02:03.7]} 22... axb5 {[%clk 0:02:14]} 23. Rc5 {[%clk 0:02:02.2]} 23...
Qb6 {[%clk 0:02:11.6]} 24. b4 {[%clk 0:02:01.9]} 24... Red7 {[%clk 0:02:11.3]}
25. Kh1 {[%clk 0:01:55.8]} 25... h6 {[%clk 0:02:10.2]} 26. h3 {[%clk 0:01:55.3]}
26... Rc7 {[%clk 0:02:04.4]} 27. Rdc1 {[%clk 0:01:52.9]} 27... Rdc8 {[%clk
0:02:03]} 28. d6 {[%clk 0:01:38.9]} 28... Rxc5 {[%clk 0:01:55.3]} 29. bxc5
{[%clk 0:01:38.3]} 29... Qc6 {[%clk 0:01:53.8]} 30. Qe3 {[%clk 0:01:31.7]} 30...
b6 {[%clk 0:01:51.4]} 31. Qxe5 {[%clk 0:01:26.9]} 31... bxc5 {[%clk 0:01:50.9]}
32. Rd1 {[%clk 0:01:25.7]} 32... Rd8 {[%clk 0:01:49.7]} 33. d7 {[%clk
0:01:18.9]} 33... Qb6 {[%clk 0:01:38.8]} 34. Qe8+ {[%clk 0:01:08.4]} 34... Kh7
{[%clk 0:01:37.1]} 35. Qxf7 {[%clk 0:01:08.6]} 35... Qg6 {[%clk 0:01:34.6]} 36.
Qe7 {[%clk 0:01:05.9]} 36... Qf6 {[%clk 0:01:33.7]} 37. Qxc5 {[%clk 0:01:04.2]}
37... Qb2 {[%clk 0:01:25.7]} 38. Qf5+ {[%clk 0:00:59.4]} 38... g6 {[%clk
0:01:21.6]} 39. Qf7+ {[%clk 0:00:58.3]} 39... Qg7 {[%clk 0:01:21.2]} 40. Qe6
{[%clk 0:00:55.8]} 40... b4 {[%clk 0:01:20]} 41. Qd6 {[%clk 0:00:52]} 41... Qf7
{[%clk 0:01:12.8]} 42. Qxb4 {[%clk 0:00:43.2]} 42... Rxd7 {[%clk 0:01:12.2]} 43.
Rxd7 {[%clk 0:00:42.4]} 43... Qxd7 {[%clk 0:01:13.1]} 44. a4 {[%clk 0:00:42]}
44... Qd1+ {[%clk 0:01:12.8]} 45. Kh2 {[%clk 0:00:42.2]} 45... Qd5 {[%clk
0:01:09.2]} 46. Qf4 {[%clk 0:00:40]} 46... g5 {[%clk 0:01:07.6]} 47. Qc7+ {[%clk
0:00:38.8]} 47... Kg6 {[%clk 0:01:07.3]} 48. a5 {[%clk 0:00:39.2]} 48... Qd3
{[%clk 0:01:00]} 49. Qb6+ {[%clk 0:00:34]} 49... Kg7 {[%clk 0:00:53.9]} 50. a6
{[%clk 0:00:33.8]} 50... Qc4 {[%clk 0:00:53.6]} 51. Qd6 {[%clk 0:00:28.2]} 51...
Qa4 {[%clk 0:00:49.2]} 52. Qc7+ {[%clk 0:00:27.7]} 52... Kg6 {[%clk 0:00:47.3]}
53. a7 {[%clk 0:00:27.9]} 53... Kh5 {[%clk 0:00:39.5]} 54. Qb8 {[%clk 0:00:26]}
54... g4 {[%clk 0:00:25.1]} 55. hxg4+ {[%clk 0:00:25.1]} 55... Kh4 {[%clk
0:00:25.3]} 56. a8=Q {[%clk 0:00:23.4]} 56... Qf4+ {[%clk 0:00:18.7]} 57. Qxf4
{[%clk 0:00:23.1]} 57... h5 {[%clk 0:00:19.6]} 58. gxh5+ {[%clk 0:00:21.7]} 1-0